fUST/lending_fUST_20251207
["ID","MTS","AMOUNT","RATE_DAILY","PERIOD"]
[396607411,1765068648459,-500.0,8.493e-05,2]
[396607413,1765068648469,-500.0,8.493e-05,2]
[396607415,1765068648480,-500.0,8.493e-05,2]
[396607417,1765068648489,-500.0,8.493e-05,2]
[396607419,1765068648499,-500.0,8.493e-05,2]
[396607421,1765068648508,-500.0,8.493e-05,2]
[396607424,1765068648519,-530.4,8.493e-05,2]
[396607426,1765068648530,-500.0,8.493e-05,2]
[396607428,1765068648539,-500.0,8.493e-05,2]
[396607430,1765068648550,-2193.46,8.493e-05,2]
[396607432,1765068648559,-500.0,8.493e-05,2]
[396607434,1765068648569,-500.0,8.493e-05,2]
[396607436,1765068648581,-500.0,8.493e-05,2]
[396607438,1765068648591,-500.0,8.493e-05,2]
[396607440,1765068648600,-500.0,8.493e-05,2]
[396607442,1765068648609,-294.62,8.493e-05,2]
[396607444,1765068648618,-524.47,8.493e-05,2]
[396607446,1765068648628,-500.0,8.493e-05,2]
[396607448,1765068648637,-967.05,8.493e-05,2]
[396607450,1765068648647,-500.0,8.493e-05,2]
[396607452,1765068648657,-500.0,8.493e-05,2]
[396607454,1765068648666,-500.0,8.493e-05,2]
[396607456,1765068648680,-500.0,8.493e-05,2]
[396607458,1765068648690,-500.0,8.493e-05,2]
[396607460,1765068648700,-500.0,8.493e-05,2]
[396607462,1765068648710,-500.0,8.493e-05,2]
[396607464,1765068648720,-500.0,8.493e-05,2]
[396607466,1765068648730,-1202.57,8.493e-05,2]
[396607468,1765068648739,-500.0,8.493e-05,2]
[396607470,1765068648750,-500.0,8.493e-05,2]
[396607472,1765068648760,-1017.27,8.493e-05,2]
[396607474,1765068648770,-540.43,8.493e-05,2]
[396607476,1765068648779,-500.0,8.493e-05,2]
[396607478,1765068648789,-500.0,8.493e-05,2]
[396607480,1765068648799,-500.0,8.493e-05,2]
[396607482,1765068648808,-500.0,8.493e-05,2]
[396607484,1765068648817,-873.61,8.493e-05,2]
[396607487,1765068648830,-500.0,8.493e-05,2]
[396607489,1765068648840,-500.0,8.493e-05,2]
[396607491,1765068648849,-500.0,8.493e-05,2]
[396607493,1765068648859,-500.0,8.493e-05,2]
[396607495,1765068648869,-500.0,8.493e-05,2]
[396607497,1765068648878,-500.0,8.493e-05,2]
[396607499,1765068648888,-500.0,8.493e-05,2]
[396607501,1765068648899,-500.0,8.493e-05,2]
[396607503,1765068648908,-500.0,8.493e-05,2]
[396607505,1765068648918,-500.0,8.493e-05,2]
[396607507,1765068648927,-500.0,8.493e-05,2]
[396607509,1765068648937,-500.0,8.493e-05,2]
[396607511,1765068648946,-500.0,8.493e-05,2]
[396607513,1765068648956,-500.0,8.493e-05,2]
[396607515,1765068648965,-2312.86,8.493e-05,2]
[396607517,1765068648974,-500.0,8.493e-05,2]
[396607519,1765068648983,-500.0,8.493e-05,2]
[396607521,1765068648993,-500.0,8.493e-05,2]
[396607523,1765068649003,-500.0,8.493e-05,2]
[396607526,1765068649012,-500.0,8.493e-05,2]
[396607528,1765068649022,-997.44,8.493e-05,2]
[396607530,1765068649031,-500.0,8.493e-05,2]
[396607532,1765068649040,-500.0,8.493e-05,2]
[396607534,1765068649051,-622.56,8.493e-05,2]
[396607538,1765068649083,-923.39,8.493e-05,2]
[396607540,1765068649093,-500.0,8.493e-05,2]
[396607542,1765068649102,-743.51,8.493e-05,2]
[396607544,1765068649112,-500.0,8.493e-05,2]
[396607546,1765068649122,-500.0,8.493e-05,2]
[396607548,1765068649131,-1752.1,8.493e-05,2]
[396607550,1765068649141,-538.29,8.493e-05,2]
[396607552,1765068649150,-591.83,8.493e-05,2]
[396607555,1765068649159,-500.0,8.493e-05,2]
[396607557,1765068649171,-500.0,8.493e-05,2]
[396607559,1765068649180,-858.89,8.493e-05,2]
[396607561,1765068649189,-171.67280976,8.493e-05,2]
[396607563,1765068649198,-500.0,8.493e-05,2]
[396607565,1765068649207,-500.0,8.493e-05,2]
[396607567,1765068649217,-500.0,8.493e-05,2]
[396607569,1765068649226,-500.0,8.493e-05,2]
[396607571,1765068649235,-500.0,8.493e-05,2]
[396607573,1765068649245,-580.48,8.493e-05,2]
[396607575,1765068649254,-1856.07,8.493e-05,2]
[396607577,1765068649264,-500.0,8.493e-05,2]
[396607579,1765068649273,-500.0,8.493e-05,2]
[396607581,1765068649282,-4688.85,8.493e-05,2]
[396607583,1765068649293,-500.0,8.493e-05,2]
[396607585,1765068649302,-500.0,8.493e-05,2]
[396607587,1765068649312,-500.0,8.493e-05,2]
[396607589,1765068649322,-500.0,8.493e-05,2]
[396607591,1765068649332,-500.0,8.493e-05,2]
[396607594,1765068649342,-500.0,8.493e-05,2]
[396607596,1765068649351,-500.0,8.493e-05,2]
[396607598,1765068649360,-500.0,8.493e-05,2]
[396607600,1765068649370,-500.0,8.493e-05,2]
[396607602,1765068649379,-1378.52,8.493e-05,2]
[396607604,1765068649388,-1000.0,8.493e-05,2]
[396607606,1765068649397,-500.0,8.493e-05,2]
[396607608,1765068649407,-500.0,8.493e-05,2]
[396607610,1765068649417,-500.0,8.493e-05,2]
[396607627,1765068649678,-500.0,8.493e-05,2]
[396607630,1765068649696,-500.0,8.493e-05,2]
[396607632,1765068649707,-500.0,8.493e-05,2]
[396607634,1765068649716,-500.0,8.493e-05,2]
[396607636,1765068649725,-1235.72,8.493e-05,2]
[396607638,1765068649734,-500.0,8.493e-05,2]
[396607640,1765068649745,-500.0,8.493e-05,2]
[396607642,1765068649755,-500.0,8.493e-05,2]
[396607644,1765068649764,-500.0,8.493e-05,2]
[396607646,1765068649773,-1274.85,8.493e-05,2]
[396607648,1765068649782,-500.0,8.493e-05,2]
[396607650,1765068649791,-500.0,8.493e-05,2]
[396607652,1765068649800,-500.0,8.493e-05,2]
[396607654,1765068649809,-500.0,8.493e-05,2]
[396607656,1765068649818,-1144.08,8.493e-05,2]
[396607657,1765068649827,-500.0,8.493e-05,2]
[396607659,1765068649836,-1607.69,8.493e-05,2]
[396607661,1765068649846,-653.68,8.493e-05,2]
[396607663,1765068649855,-500.0,8.493e-05,2]
[396607665,1765068649866,-500.0,8.493e-05,2]
[396607667,1765068649875,-2452.21,8.493e-05,2]
[396607670,1765068649885,-632.71,8.493e-05,2]
[396607672,1765068649897,-500.0,8.493e-05,2]
[396607673,1765068649910,-827.31,8.493e-05,2]
[396607675,1765068649920,-500.0,8.493e-05,2]
[396607678,1765068649931,-500.0,8.493e-05,2]
[396607679,1765068649940,-824.53,8.493e-05,2]
[396607681,1765068649949,-500.0,8.493e-05,2]
[396607683,1765068649958,-1162.81,8.493e-05,2]
[396607685,1765068649967,-500.0,8.493e-05,2]
[396607687,1765068649976,-500.0,8.493e-05,2]
[396607689,1765068649985,-500.0,8.493e-05,2]
[396607691,1765068649994,-1007.94,8.493e-05,2]
[396607693,1765068650003,-500.0,8.493e-05,2]
[396607695,1765068650013,-500.0,8.493e-05,2]
[396607697,1765068650022,-1510.18,8.493e-05,2]
[396607700,1765068650033,-500.0,8.493e-05,2]
[396607701,1765068650043,-500.0,8.493e-05,2]
[396607704,1765068650053,-509.88,8.493e-05,2]
[396607706,1765068650062,-566.1,8.493e-05,2]
[396607708,1765068650072,-500.0,8.493e-05,2]
[396607710,1765068650081,-500.0,8.493e-05,2]
[396607712,1765068650090,-500.0,8.493e-05,2]
[396607713,1765068650100,-500.0,8.493e-05,2]
[396607715,1765068650110,-686.87,8.493e-05,2]
[396607717,1765068650119,-500.0,8.493e-05,2]
[396607719,1765068650128,-500.0,8.493e-05,2]
[396607721,1765068650137,-534.43,8.493e-05,2]
[396607723,1765068650146,-1013.9,8.493e-05,2]
[396607725,1765068650155,-500.0,8.493e-05,2]
[396607727,1765068650164,-500.0,8.493e-05,2]
[396607729,1765068650173,-500.0,8.493e-05,2]
[396607731,1765068650181,-990.41,8.493e-05,2]
[396607733,1765068650191,-500.0,8.493e-05,2]
[396607735,1765068650200,-500.0,8.493e-05,2]
[396607737,1765068650211,-1478.5,8.493e-05,2]
[396607739,1765068650220,-500.0,8.493e-05,2]
[396607741,1765068650229,-691.78,8.493e-05,2]
[396607743,1765068650239,-500.0,8.493e-05,2]
[396607745,1765068650250,-512.54,8.493e-05,2]
[396607747,1765068650259,-457.40444893,8.493e-05,2]
[396607749,1765068650268,-500.0,8.493e-05,2]
[396607751,1765068650277,-565.61,8.493e-05,2]
[396607753,1765068650287,-500.0,8.493e-05,2]
[396607755,1765068650296,-500.0,8.493e-05,2]
[396607757,1765068650305,-500.0,8.493e-05,2]
[396607759,1765068650317,-816.52,8.493e-05,2]
[396607762,1765068650326,-393.25862066,8.493e-05,2]
[396607763,1765068650335,-500.0,8.493e-05,2]
[396607765,1765068650345,-740.15,8.493e-05,2]
[396607767,1765068650354,-500.0,8.493e-05,2]
[396607769,1765068650363,-500.0,8.493e-05,2]
[396607771,1765068650373,-500.0,8.493e-05,2]
[396607773,1765068650383,-500.0,8.493e-05,2]
[396607775,1765068650392,-1013.01,8.493e-05,2]
[396607778,1765068650402,-1563.42,8.493e-05,2]
[396607780,1765068650412,-796.19,8.493e-05,2]
[396607782,1765068650422,-548.16,8.493e-05,2]
[396607784,1765068650431,-500.0,8.493e-05,2]
[396607786,1765068650440,-500.0,8.493e-05,2]
[396607788,1765068650450,-1074.43,8.493e-05,2]
[396607789,1765068650459,-500.0,8.493e-05,2]
[396607791,1765068650468,-1732.13,8.493e-05,2]
[396607793,1765068650477,-500.0,8.493e-05,2]
[396607795,1765068650486,-500.0,8.493e-05,2]
[396607797,1765068650496,-500.0,8.493e-05,2]
[396607800,1765068650506,-500.0,8.493e-05,2]
[396607802,1765068650517,-655.53,8.493e-05,2]
[396607803,1765068650527,-2547.72,8.493e-05,2]
[396607804,1765068650537,-500.0,8.493e-05,2]
[396607805,1765068650547,-500.0,8.493e-05,2]
[396607806,1765068650556,-688.22,8.493e-05,2]
[396607807,1765068650565,-500.0,8.493e-05,2]
[396607808,1765068650574,-500.0,8.493e-05,2]
[396607809,1765068650583,-500.0,8.493e-05,2]
[396607810,1765068650592,-591.53,8.493e-05,2]
[396607811,1765068650601,-958.31,8.493e-05,2]
[396607812,1765068650610,-500.0,8.493e-05,2]
[396607813,1765068650618,-500.0,8.493e-05,2]
[396607814,1765068650627,-654.93,8.493e-05,2]
[396607815,1765068650636,-789.53,8.493e-05,2]
[396607816,1765068650645,-500.0,8.493e-05,2]
[396607817,1765068650654,-500.0,8.493e-05,2]
[396607818,1765068650663,-1113.19,8.493e-05,2]
[396607819,1765068650677,-500.0,8.493e-05,2]
[396607820,1765068650685,-629.28158219,8.493e-05,2]
[396607821,1765068650694,-1023.18,8.493e-05,2]
[396607822,1765068650704,-500.0,8.493e-05,2]
[396607823,1765068650713,-500.0,8.493e-05,2]
[396607824,1765068650722,-500.0,8.493e-05,2]
[396607825,1765068650731,-500.0,8.493e-05,2]
[396607826,1765068650740,-624.17,8.493e-05,2]
[396607827,1765068650750,-500.0,8.493e-05,2]
[396607828,1765068650759,-690.91,8.493e-05,2]
[396607829,1765068650767,-1120.12,8.493e-05,2]
[396607830,1765068650776,-500.0,8.493e-05,2]
[396607831,1765068650785,-692.04,8.493e-05,2]
[396607832,1765068650794,-218.35998814,8.493e-05,2]
[396607833,1765068650803,-500.0,8.493e-05,2]
[396607834,1765068650813,-1195.44,8.493e-05,2]
[396607835,1765068650826,-514.3,8.493e-05,2]
[396607836,1765068650836,-525.02,8.493e-05,2]
[396607837,1765068650846,-500.0,8.493e-05,2]
[396607838,1765068650855,-969.93,8.493e-05,2]
[396607840,1765068650865,-2688.77,8.493e-05,2]
[396607841,1765068650874,-500.0,8.493e-05,2]
[396607842,1765068650885,-500.0,8.493e-05,2]
[396607844,1765068650896,-500.0,8.493e-05,2]
[396607846,1765068650905,-500.0,8.493e-05,2]
[396607848,1765068650915,-1728.52,8.493e-05,2]
[396607850,1765068650924,-500.0,8.493e-05,2]
[396607852,1765068650932,-3106.9,8.493e-05,2]
[396607854,1765068650942,-500.0,8.493e-05,2]
[396607856,1765068650951,-500.0,8.493e-05,2]
[396607858,1765068650960,-4313.18,8.493e-05,2]
[396607860,1765068650969,-500.0,8.493e-05,2]
[396607862,1765068650978,-500.0,8.493e-05,2]
[396607864,1765068650987,-500.0,8.493e-05,2]
[396607865,1765068650997,-500.0,8.493e-05,2]
[396607866,1765068651007,-500.0,8.493e-05,2]
[396607868,1765068651017,-500.0,8.493e-05,2]
[396607869,1765068651026,-23488.97,8.493e-05,2]
[396607870,1765068651035,-500.0,8.493e-05,2]
[396607871,1765068651045,-500.0,8.493e-05,2]
[396607872,1765068651054,-809.57,8.493e-05,2]
[396607873,1765068651066,-500.0,8.493e-05,2]
[396607874,1765068651075,-500.0,8.493e-05,2]
[396607875,1765068651084,-500.0,8.493e-05,2]
[396607876,1765068651094,-1149.47,8.493e-05,2]
[396607877,1765068651103,-500.0,8.493e-05,2]
[396607878,1765068651113,-500.0,8.493e-05,2]
[396607879,1765068651122,-500.0,8.493e-05,2]
[396607880,1765068651131,-1031.62,8.493e-05,2]
[396607881,1765068651142,-6960.46,8.493e-05,2]
[396607882,1765068651151,-1885.34,8.493e-05,2]
[396607883,1765068651162,-500.0,8.493e-05,2]
[396607884,1765068651171,-500.0,8.493e-05,2]
[396607885,1765068651180,-500.0,8.493e-05,2]
[396607886,1765068651191,-500.0,8.493e-05,2]
[396607887,1765068651200,-611.61438349,8.493e-05,2]
[396607888,1765068651210,-500.0,8.493e-05,2]
[396607889,1765068651220,-500.0,8.493e-05,2]
[396607890,1765068651230,-500.0,8.493e-05,2]
[396607891,1765068651239,-500.0,8.493e-05,2]
[396607893,1765068651253,-500.0,8.493e-05,2]
[396607895,1765068651262,-1364.27,8.493e-05,2]
[396607897,1765068651272,-500.0,8.493e-05,2]
[396607899,1765068651281,-500.0,8.493e-05,2]
[396607900,1765068651291,-702.74,8.493e-05,2]
[396607901,1765068651303,-500.0,8.493e-05,2]
[396607902,1765068651313,-500.0,8.493e-05,2]
[396607903,1765068651323,-8605.21,8.493e-05,2]
[396607904,1765068651332,-500.0,8.493e-05,2]
[396607905,1765068651342,-586.27,8.493e-05,2]
[396607906,1765068651351,-500.0,8.493e-05,2]
[396607907,1765068651361,-1604.9,8.493e-05,2]
[396607908,1765068651370,-500.0,8.493e-05,2]
[396607909,1765068651380,-500.0,8.493e-05,2]
[396607910,1765068651390,-500.0,8.493e-05,2]
[396607911,1765068651399,-500.0,8.493e-05,2]
[396607912,1765068651410,-786.67,8.493e-05,2]
[396607913,1765068651419,-811.03,8.493e-05,2]
[396607914,1765068651429,-500.0,8.493e-05,2]
[396607915,1765068651438,-500.0,8.493e-05,2]
[396607916,1765068651447,-500.0,8.493e-05,2]
[396607917,1765068651457,-5076.16,8.493e-05,2]
[396607918,1765068651467,-500.0,8.493e-05,2]
[396607919,1765068651476,-500.0,8.493e-05,2]
[396607920,1765068651486,-1782.44,8.493e-05,2]
[396607921,1765068651495,-3233.07,8.493e-05,2]
[396607922,1765068651505,-647.14,8.493e-05,2]
[396607923,1765068651515,-2388.18,8.493e-05,2]
[396607924,1765068651525,-876.67,8.493e-05,2]
[396607925,1765068651534,-500.0,8.493e-05,2]
[396607926,1765068651543,-500.0,8.493e-05,2]
[396607927,1765068651553,-1223.98,8.493e-05,2]
[396607928,1765068651562,-500.0,8.493e-05,2]
[396607929,1765068651573,-500.0,8.493e-05,2]
[396607930,1765068651582,-741.92,8.493e-05,2]
[396607931,1765068651591,-652.03,8.493e-05,2]
[396607932,1765068651600,-500.0,8.493e-05,2]
[396607933,1765068651609,-527.23,8.493e-05,2]
[396607934,1765068651618,-1371.76,8.493e-05,2]
[396607935,1765068651627,-500.0,8.493e-05,2]
[396607936,1765068651637,-542.75,8.493e-05,2]
[396607937,1765068651647,-500.0,8.493e-05,2]
[396607938,1765068651656,-500.0,8.493e-05,2]
[396607939,1765068651670,-1200.21,8.493e-05,2]
[396607940,1765068651680,-500.0,8.493e-05,2]
[396607941,1765068651691,-500.0,8.493e-05,2]
[396607942,1765068651704,-500.0,8.493e-05,2]
[396607943,1765068651719,-925.68,8.493e-05,2]
[396607944,1765068651729,-936.35,8.493e-05,2]
[396607945,1765068651739,-500.0,8.493e-05,2]
[396607946,1765068651749,-500.0,8.493e-05,2]
[396607947,1765068651759,-500.0,8.493e-05,2]
[396607948,1765068651769,-500.0,8.493e-05,2]
[396607949,1765068651780,-1453.93,8.493e-05,2]
[396607950,1765068651790,-500.0,8.493e-05,2]
[396607951,1765068651801,-500.0,8.493e-05,2]
[396607952,1765068651810,-1377.98,8.493e-05,2]
[396607953,1765068651820,-4761.07,8.493e-05,2]
[396607954,1765068651830,-500.0,8.493e-05,2]
[396607955,1765068651839,-500.0,8.493e-05,2]
[396607956,1765068651849,-500.0,8.493e-05,2]
[396607957,1765068651859,-500.0,8.493e-05,2]
[396607958,1765068651869,-500.0,8.493e-05,2]
[396607959,1765068651879,-578.06649696,8.493e-05,2]
[396607960,1765068651889,-1285.11,8.493e-05,2]
[396607961,1765068651899,-500.0,8.493e-05,2]
[396607962,1765068651910,-500.0,8.493e-05,2]
[396607963,1765068651919,-500.0,8.493e-05,2]
[396607965,1765068651929,-1875.62,8.493e-05,2]
[396607967,1765068651939,-707.93,8.493e-05,2]
[396607968,1765068651950,-500.0,8.493e-05,2]
[396607970,1765068651959,-500.0,8.493e-05,2]
[396607978,1765068652039,-500.0,8.493e-05,2]
[396607981,1765068652051,-500.0,8.493e-05,2]
[396607983,1765068652060,-448.22956262,8.493e-05,2]
[396607985,1765068652070,-500.0,8.493e-05,2]
[396607987,1765068652079,-3093.44,8.493e-05,2]
[396607988,1765068652088,-500.0,8.493e-05,2]
[396607990,1765068652104,-500.0,8.493e-05,2]
[396607992,1765068652114,-500.0,8.493e-05,2]
[396607994,1765068652123,-617.99229362,8.493e-05,2]
[396607996,1765068652133,-500.0,8.493e-05,2]
[396607998,1765068652142,-500.0,8.493e-05,2]
[396608000,1765068652151,-4469.45,8.493e-05,2]
[396608002,1765068652161,-500.0,8.493e-05,2]
[396608004,1765068652170,-500.0,8.493e-05,2]
[396608006,1765068652180,-500.0,8.493e-05,2]
[396608008,1765068652188,-500.0,8.493e-05,2]
[396608010,1765068652197,-616.98,8.493e-05,2]
[396608012,1765068652207,-500.0,8.493e-05,2]
[396608014,1765068652216,-529.64,8.493e-05,2]
[396608016,1765068652226,-500.0,8.493e-05,2]
[396608018,1765068652236,-506.50247738,8.493e-05,2]
[396608020,1765068652245,-4006.18,8.493e-05,2]
[396608022,1765068652253,-500.0,8.493e-05,2]
[396608024,1765068652262,-500.0,8.493e-05,2]
[396608025,1765068652271,-252.75505598,8.493e-05,2]
[396608027,1765068652280,-627.14,8.493e-05,2]
[396608029,1765068652289,-900.96,8.493e-05,2]
[396608031,1765068652299,-5363.8,8.493e-05,2]
[396608033,1765068652308,-2970.88,8.493e-05,2]
[396608035,1765068652318,-500.0,8.493e-05,2]
[396608037,1765068652327,-500.0,8.493e-05,2]
[396608039,1765068652337,-1424.27,8.493e-05,2]
[396608041,1765068652346,-500.0,8.493e-05,2]
[396608043,1765068652355,-3013.62,8.493e-05,2]
[396608044,1765068652364,-14680.65,8.493e-05,2]
[396608046,1765068652373,-500.0,8.493e-05,2]
[396608048,1765068652382,-500.0,8.493e-05,2]
[396608050,1765068652392,-1453.25,8.493e-05,2]
[396608052,1765068652401,-2399.37,8.493e-05,2]
[396608054,1765068652410,-1257.39,8.493e-05,2]
[396608056,1765068652419,-1807.16,8.493e-05,2]
[396608058,1765068652428,-1160.51,8.493e-05,2]
[396608060,1765068652438,-883.17,8.493e-05,2]
[396608062,1765068652447,-500.0,8.493e-05,2]
[396608064,1765068652455,-887.95,8.493e-05,2]
[396608065,1765068652464,-500.0,8.493e-05,2]
[396608067,1765068652481,-1603.7,8.493e-05,2]
[396608069,1765068652489,-4726.89,8.493e-05,2]
[396608071,1765068652499,-500.0,8.493e-05,2]
[396608073,1765068652512,-2168.96,8.493e-05,2]
[396608075,1765068652521,-978.9,8.493e-05,2]
[396608077,1765068652531,-553.65,8.493e-05,2]
[396608079,1765068652540,-500.0,8.493e-05,2]
[396608081,1765068652550,-500.38726906,8.493e-05,2]
[396608083,1765068652560,-500.0,8.493e-05,2]
[396608085,1765068652570,-592.29,8.493e-05,2]
[396608087,1765068652579,-500.0,8.493e-05,2]
[396608089,1765068652588,-500.0,8.493e-05,2]
[396608091,1765068652598,-1025.91,8.493e-05,2]
[396608093,1765068652607,-500.0,8.493e-05,2]
[396608095,1765068652615,-500.0,8.493e-05,2]
[396608097,1765068652624,-1612.78,8.493e-05,2]
[396608098,1765068652634,-500.0,8.493e-05,2]
[396608100,1765068652644,-500.0,8.493e-05,2]
[396608102,1765068652653,-500.0,8.493e-05,2]
[396608104,1765068652663,-500.0,8.493e-05,2]
[396608106,1765068652675,-500.0,8.493e-05,2]
[396608108,1765068652685,-500.0,8.493e-05,2]
[396608109,1765068652693,-1445.21,8.493e-05,2]
[396608111,1765068652702,-1140.16,8.493e-05,2]
[396608113,1765068652713,-8001.92,8.493e-05,2]
[396608115,1765068652722,-500.0,8.493e-05,2]
[396608118,1765068652738,-500.0,8.493e-05,2]
[396608120,1765068652753,-500.0,8.493e-05,2]
[396608122,1765068652762,-2206.44,8.493e-05,2]
[396608124,1765068652771,-671.37,8.493e-05,2]
[396608126,1765068652780,-500.0,8.493e-05,2]
[396608128,1765068652789,-1665.63,8.493e-05,2]
[396608129,1765068652798,-500.0,8.493e-05,2]
[396608131,1765068652808,-500.0,8.493e-05,2]
[396608133,1765068652817,-5576.9,8.493e-05,2]
[396608135,1765068652827,-500.0,8.493e-05,2]
[396608137,1765068652836,-500.0,8.493e-05,2]
[396608139,1765068652845,-500.0,8.493e-05,2]
[396608141,1765068652854,-2627.08,8.493e-05,2]
[396608143,1765068652864,-4527.15,8.493e-05,2]
[396608145,1765068652873,-500.0,8.493e-05,2]
[396608147,1765068652882,-500.0,8.493e-05,2]
[396608149,1765068652891,-500.0,8.493e-05,2]
[396608151,1765068652900,-1653.69,8.493e-05,2]
[396608153,1765068652909,-7285.99,8.493e-05,2]
[396608155,1765068652919,-500.0,8.493e-05,2]
[396608157,1765068652928,-1447.21,8.493e-05,2]
[396608159,1765068652937,-12192.07,8.493e-05,2]
[396608161,1765068652946,-1245.01,8.493e-05,2]
[396608163,1765068652956,-656.85,8.493e-05,2]
[396608164,1765068652965,-500.0,8.493e-05,2]
[396608166,1765068652974,-500.0,8.493e-05,2]
[396608168,1765068652984,-837.76,8.493e-05,2]
[396608170,1765068652993,-2149.12,8.493e-05,2]
[396608172,1765068653002,-500.0,8.493e-05,2]
[396608174,1765068653012,-943.23,8.493e-05,2]
[396608176,1765068653022,-500.0,8.493e-05,2]
[396608178,1765068653031,-500.0,8.493e-05,2]
[396608180,1765068653040,-1306.75,8.493e-05,2]
[396608182,1765068653050,-500.0,8.493e-05,2]
[396608184,1765068653060,-500.0,8.493e-05,2]
[396608186,1765068653069,-1766.02,8.493e-05,2]
[396608188,1765068653079,-500.0,8.493e-05,2]
[396608189,1765068653088,-921.87,8.493e-05,2]
[396608192,1765068653099,-295.3572722,8.493e-05,2]
[396608193,1765068653109,-500.0,8.493e-05,2]
[396608195,1765068653118,-500.0,8.493e-05,2]
[396608197,1765068653128,-1451.97,8.493e-05,2]
[396608199,1765068653138,-500.0,8.493e-05,2]
[396608201,1765068653148,-9265.77,8.493e-05,2]
[396608203,1765068653158,-861.01,8.493e-05,2]
[396608205,1765068653168,-500.0,8.493e-05,2]
[396608207,1765068653178,-1520.14,8.493e-05,2]
[396608209,1765068653188,-500.0,8.493e-05,2]
[396608211,1765068653198,-789.38,8.493e-05,2]
[396608213,1765068653208,-1191.0,8.493e-05,2]
[396608215,1765068653217,-500.0,8.493e-05,2]
[396608217,1765068653227,-2563.67,8.493e-05,2]
[396608219,1765068653237,-500.0,8.493e-05,2]
[396608221,1765068653248,-591.94,8.493e-05,2]
[396608223,1765068653258,-500.0,8.493e-05,2]
[396608225,1765068653267,-500.0,8.493e-05,2]
[396608227,1765068653276,-235.25,8.493e-05,2]
[396608229,1765068653286,-500.0,8.493e-05,2]
[396608231,1765068653295,-500.0,8.493e-05,2]
[396608233,1765068653305,-3060.13,8.493e-05,2]
[396608235,1765068653315,-500.0,8.493e-05,2]
[396608237,1765068653325,-500.0,8.493e-05,2]
[396608239,1765068653336,-500.0,8.493e-05,2]
[396608241,1765068653345,-2059.08,8.493e-05,2]
[396608242,1765068653355,-500.0,8.493e-05,2]
[396608244,1765068653365,-1166.99,8.493e-05,2]
[396608246,1765068653374,-500.0,8.493e-05,2]
[396608248,1765068653383,-500.0,8.493e-05,2]
[396608250,1765068653393,-1750.63,8.493e-05,2]
[396608252,1765068653403,-12399.98,8.493e-05,2]
[396608254,1765068653412,-3682.6,8.493e-05,2]
[396608256,1765068653421,-1376.59,8.493e-05,2]
[396608258,1765068653431,-500.0,8.493e-05,2]
[396608260,1765068653440,-2476.06,8.493e-05,2]
[396608262,1765068653450,-1274.51,8.493e-05,2]
[396608264,1765068653460,-500.0,8.493e-05,2]
[396608266,1765068653469,-500.0,8.493e-05,2]
[396608268,1765068653479,-2197.16,8.493e-05,2]
[396608270,1765068653488,-564.88237235,8.493e-05,2]
[396608272,1765068653497,-1866.43,8.493e-05,2]
[396608274,1765068653507,-500.0,8.493e-05,2]
[396608276,1765068653516,-3479.76,8.493e-05,2]
[396608278,1765068653526,-1397.58,8.493e-05,2]
[396608280,1765068653535,-500.0,8.493e-05,2]
[396608282,1765068653545,-500.0,8.493e-05,2]
[396608284,1765068653555,-500.0,8.493e-05,2]
[396608286,1765068653565,-3463.17273454,8.528e-05,2]
[396608288,1765068653578,-500.0,8.531e-05,2]
[396608290,1765068653588,-151.0,8.615e-05,2]
[396608292,1765068653598,-500.0,8.668e-05,2]
[396608294,1765068653607,-157.08133513,8.681e-05,2]
[396608296,1765068653617,-1313.46054653,8.74e-05,2]
[396608299,1765068653628,-1728.678302,8.767e-05,2]
[396608300,1765068653638,-500.0,8.767e-05,2]
[396608302,1765068653647,-500.0,8.767e-05,2]